bitfinex/quotes_BTCUSD_20240620
["timestamp","ask_amount","ask_price","bid_price","bid_amount"]
[1718858593666,0.03018737,65302.0,65301.0,0.84664471]
[1718858596065,0.02993679,65302.0,65301.0,0.84664471]
[1718858597017,0.02993679,65302.0,65301.0,0.54037071]
[1718858597956,0.02993679,65302.0,65301.0,0.53037071]
[1718858598164,0.02993679,65302.0,65301.0,0.38723371]
[1718858599707,0.48933979,65302.0,65301.0,0.22467259]
[1718858604302,0.18307079,65302.0,65301.0,0.23467259]
[1718858607436,0.18307079,65302.0,65301.0,0.22467259]
[1718858608961,0.18307079,65302.0,65301.0,0.23467259]
[1718858609371,0.18307079,65302.0,65301.0,0.22467259]
[1718858610334,0.30626,65304.0,65301.0,0.22467259]
[1718858610535,0.459389,65304.0,65303.0,0.00842659]
[1718858611647,0.460389,65304.0,65303.0,0.00842659]
[1718858611991,0.460389,65304.0,65303.0,0.01242659]
[1718858612446,0.461389,65304.0,65303.0,0.01742659]
[1718858618346,0.55334319,65304.0,65303.0,0.01742659]
[1718858619085,0.461389,65304.0,65303.0,0.01742659]
[1718858619858,0.55334319,65304.0,65303.0,0.01742659]
[1718858620470,0.8787301,65304.0,65303.0,0.01742659]
[1718858620695,1.09303591,65304.0,65303.0,0.01742659]
[1718858620910,1.28763591,65304.0,65303.0,0.01742659]
[1718858623517,1.34713591,65304.0,65303.0,0.009]
[1718858623711,1.44713591,65304.0,65303.0,0.009]
[1718858624549,1.44613591,65304.0,65303.0,0.004]
[1718858624765,1.071941,65302.0,65301.0,0.000946]
[1718858625092,1.4415398,65302.0,65301.0,0.000946]
[1718858625241,1.30356791,65302.0,65301.0,0.000946]
[1718858625867,1.36306791,65302.0,65301.0,0.000946]
[1718858627802,1.44606791,65302.0,65301.0,0.000946]
[1718858632813,2.16128691,65302.0,65301.0,0.000946]
[1718858633098,2.24320406,65302.0,65301.0,0.000946]
[1718858633299,2.38108762,65302.0,65301.0,0.000946]
[1718858633498,2.68735662,65302.0,65301.0,0.000946]
[1718858633788,2.62663415,65302.0,65301.0,0.000946]
[1718858633925,2.55526041,65302.0,65301.0,0.000946]
[1718858634117,2.55726041,65302.0,65301.0,0.000946]
[1718858634682,2.57845913,65302.0,65301.0,0.000946]
[1718858635509,2.59446692,65302.0,65301.0,0.000946]
[1718858636546,2.74702804,65302.0,65301.0,0.000946]
[1718858636741,3.05329704,65302.0,65301.0,0.000946]
[1718858637460,3.20827266,65302.0,65301.0,0.000946]
[1718858637838,3.14877266,65302.0,65301.0,0.000946]
[1718858638030,3.20827266,65302.0,65301.0,0.000946]
[1718858638434,3.05329704,65302.0,65301.0,0.000946]
[1718858639823,0.274369,65287.0,65286.0,0.07722772]
[1718858640032,0.333869,65287.0,65286.0,0.000946]
[1718858640236,1.15081291,65287.0,65286.0,0.000946]
[1718858640455,1.19131291,65287.0,65286.0,0.000946]
[1718858640632,2.09348991,65287.0,65286.0,0.000946]
[1718858640834,2.26825609,65287.0,65286.0,0.000946]
[1718858641233,2.17750706,65287.0,65286.0,0.010946]
[1718858641434,2.17850706,65287.0,65286.0,0.010946]
[1718858641631,2.29322952,65287.0,65286.0,0.010946]
[1718858641833,2.17850706,65287.0,65286.0,0.010946]
[1718858642390,2.57363341,65287.0,65286.0,0.010946]
[1718858642645,3.03253353,65287.0,65286.0,0.010946]
[1718858642882,2.30385653,65287.0,65286.0,0.010946]
[1718858643018,2.30385653,65287.0,65286.0,0.00865861]
[1718858643019,5.94913918,65287.0,65286.0,0.00865861]
[1718858643233,2.38193041,65287.0,65286.0,0.00865861]
[1718858643438,4.99896853,65287.0,65286.0,0.00865861]
[1718858643640,2.44043041,65287.0,65286.0,0.005]
[1718858643877,1.225396,65285.0,65284.0,0.009471]
[1718858644086,2.46923112,65285.0,65284.0,0.009471]
[1718858644288,2.59243562,65285.0,65284.0,0.009471]
[1718858644445,1.38437535,65284.0,65283.0,0.009471]
[1718858644644,1.92775362,65284.0,65283.0,0.009471]
[1718858644845,4.94448862,65284.0,65283.0,0.009471]
[1718858645257,5.40339576,65284.0,65283.0,0.009471]
[1718858645458,1.58343835,65281.0,65279.0,0.009471]
[1718858645700,1.91849947,65281.0,65279.0,0.009471]
[1718858645901,5.69206962,65281.0,65279.0,0.009471]
[1718858646075,5.41780962,65281.0,65279.0,0.009471]
[1718858646293,2.09392341,65281.0,65279.0,0.009471]
[1718858646564,5.76177441,65281.0,65279.0,0.009471]
[1718858646805,5.50260041,65281.0,65279.0,0.009471]
[1718858647009,5.39148706,65281.0,65279.0,0.009471]
[1718858647178,4.74561562,65281.0,65279.0,0.009471]
[1718858647380,4.74561562,65281.0,65280.0,0.00869485]
[1718858647784,4.86012241,65281.0,65280.0,0.00869485]
[1718858647992,4.86012241,65281.0,65280.0,0.00969485]
[1718858648185,4.83716045,65281.0,65280.0,0.00969485]
[1718858648363,4.74561562,65281.0,65280.0,0.00969485]
[1718858648768,4.83716039,65281.0,65280.0,0.00969485]
[1718858649016,4.74561562,65281.0,65280.0,0.00969485]
[1718858649526,4.74561562,65281.0,65279.0,0.009471]
[1718858649527,1.38446135,65280.0,65279.0,0.009471]
[1718858649862,1.91763962,65280.0,65279.0,0.009471]
[1718858650098,4.78177262,65280.0,65279.0,0.009471]
[1718858650600,4.68147862,65280.0,65279.0,0.009471]
[1718858650806,3.79412962,65280.0,65279.0,0.012471]
[1718858651015,3.78400775,65280.0,65279.0,0.014471]
[1718858651405,3.78712775,65280.0,65279.0,0.014471]
[1718858651615,3.77349775,65280.0,65279.0,0.014471]
[1718858651914,3.80130776,65280.0,65279.0,0.014471]
[1718858652338,3.79552041,65280.0,65279.0,0.014471]
[1718858653598,3.81606934,65280.0,65279.0,0.014471]
[1718858653810,3.82730421,65280.0,65279.0,0.014471]
[1718858655605,3.14485121,65280.0,65279.0,0.014471]
[1718858655860,2.75992921,65280.0,65279.0,0.014471]
[1718858656017,2.55409221,65280.0,65279.0,0.014471]
[1718858656835,2.34203109,65280.0,65279.0,0.014471]
[1718858657040,1.52831509,65280.0,65279.0,0.23469759]
[1718858657248,1.52831509,65280.0,65279.0,0.226271]
[1718858657427,1.48051981,65280.0,65279.0,0.226271]
[1718858657856,1.48051981,65280.0,65279.0,0.23469759]
[1718858658132,2.16730798,65280.0,65279.0,0.014471]
[1718858658285,2.16152063,65280.0,65279.0,0.014471]
[1718858658486,2.21510326,65280.0,65279.0,0.014471]
[1718858659077,2.23913327,65280.0,65279.0,0.014471]
[1718858659473,2.22316557,65280.0,65279.0,0.014471]
[1718858660074,1.07817335,65275.0,65274.0,0.000946]
[1718858660279,1.26612087,65275.0,65274.0,0.000946]
[1718858660719,2.68857822,65275.0,65274.0,0.000946]
[1718858660895,1.3197035,65275.0,65274.0,0.000946]
[1718858661095,3.07357822,65275.0,65274.0,0.000946]
[1718858661319,1.3197035,65275.0,65274.0,0.000946]
[1718858661528,3.15449515,65275.0,65274.0,0.004946]
[1718858661774,2.85333515,65275.0,65274.0,0.004946]
[1718858661902,2.8591225,65275.0,65274.0,0.004946]
[1718858662109,2.85490416,65275.0,65274.0,0.004946]
[1718858662514,2.85590416,65275.0,65274.0,0.004946]
[1718858662985,2.85590416,65275.0,65274.0,0.22511645]
[1718858663121,2.54655316,65275.0,65274.0,0.22511645]
[1718858664824,2.39335516,65275.0,65274.0,0.22511645]
[1718858665035,1.32132516,65275.0,65274.0,0.22511645]
[1718858665390,3.17666826,65275.0,65274.0,0.22511645]
[1718858665594,1.32132516,65275.0,65274.0,0.22511645]
[1718858665745,1.27314526,65275.0,65274.0,0.22511645]
[1718858665953,3.11846926,65275.0,65274.0,0.22511645]
[1718858666174,1.32132516,65275.0,65274.0,0.22511645]
[1718858666598,3.20473016,65275.0,65274.0,0.22511645]
[1718858667337,3.22008916,65275.0,65274.0,0.22511645]
[1718858667507,3.18218116,65275.0,65274.0,0.22511645]
[1718858667917,3.48857716,65275.0,65274.0,0.22511645]
[1718858668345,3.49436451,65275.0,65274.0,0.22511645]
[1718858670293,3.48857716,65275.0,65274.0,0.22511645]
[1718858671252,3.49436451,65275.0,65274.0,0.22511645]
[1718858671633,3.95332163,65275.0,65274.0,0.22511645]
[1718858672034,3.95332163,65275.0,65274.0,0.20887645]
[1718858672279,4.06472163,65275.0,65274.0,0.20887645]
[1718858672721,4.06372163,65275.0,65274.0,0.20887645]
[1718858672942,4.15152163,65275.0,65274.0,0.20887645]
[1718858673348,4.15252163,65275.0,65274.0,0.20887645]
[1718858674230,4.15550985,65275.0,65274.0,0.20887645]
[1718858674406,4.15650985,65275.0,65274.0,0.19187645]
[1718858674787,4.17251764,65275.0,65274.0,0.19187645]
[1718858676795,4.17251764,65275.0,65274.0,0.11230645]
[1718858676796,4.29085968,65275.0,65274.0,0.11230645]
[1718858676996,4.48199259,65275.0,65274.0,0.11230645]
[1718858677436,4.48199259,65275.0,65274.0,0.08530645]
[1718858677925,4.48099259,65275.0,65274.0,0.08530645]
[1718858678159,4.37999259,65275.0,65274.0,0.08530645]
[1718858678788,4.47999259,65275.0,65274.0,0.06730645]
[1718858680162,4.61729013,65275.0,65274.0,0.06730645]
[1718858680337,4.61749855,65275.0,65274.0,0.06730645]
[1718858681139,4.49915651,65275.0,65274.0,0.05030645]
[1718858681339,4.36165055,65275.0,65274.0,0.05030645]
[1718858682918,4.41165055,65275.0,65274.0,0.05030645]
[1718858683429,4.41127604,65275.0,65274.0,0.05030645]
[1718858683635,4.41427604,65275.0,65274.0,0.05030645]
[1718858683843,0.1,65271.0,65262.0,0.009471]
[1718858684042,0.00578735,65261.0,65259.0,0.099]
[1718858684159,0.71437134,65260.0,65259.0,0.099]
[1718858684370,1.42730334,65260.0,65259.0,0.099]
[1718858685000,1.73376934,65260.0,65259.0,0.099]
[1718858685207,1.78327577,65260.0,65259.0,0.099]
[1718858685406,3.97193177,65260.0,65259.0,0.099]
[1718858685620,3.97793177,65260.0,65259.0,0.099]
[1718858685979,3.82536377,65260.0,65259.0,0.099]
[1718858686185,3.80220677,65260.0,65259.0,0.099]
[1718858687401,3.80320677,65260.0,65259.0,0.099]
[1718858687607,3.73791942,65260.0,65259.0,0.099]
[1718858687815,3.79741942,65260.0,65259.0,0.099]
[1718858688239,3.75851142,65260.0,65259.0,0.099]
[1718858688583,3.63930842,65260.0,65259.0,0.099]
[1718858688997,3.01532142,65260.0,65259.0,0.099]
[1718858689193,2.67711742,65260.0,65259.0,0.099]
[1718858689994,2.53522942,65260.0,65259.0,0.099]
[1718858690210,2.50329942,65260.0,65259.0,0.099]
[1718858691240,2.0442723,65260.0,65259.0,0.2243]
[1718858691443,2.0442723,65260.0,65259.0,0.23272659]
[1718858691444,1.35859538,65260.0,65259.0,0.23272659]
[1718858691621,1.30908895,65260.0,65259.0,0.23272659]
[1718858691845,1.19445487,65260.0,65259.0,0.23272659]
[1718858692495,0.88798887,65260.0,65259.0,0.23272659]
[1718858692703,0.58152287,65260.0,65259.0,0.23272659]
[1718858694004,0.27505687,65260.0,65259.0,0.23272659]
[1718858697310,0.58152287,65260.0,65259.0,0.23272659]
[1718858699259,0.12182387,65260.0,65259.0,0.23272659]
[1718858699801,0.12182387,65260.0,65259.0,0.24272659]
[1718858700008,0.12182387,65260.0,65259.0,0.23272659]
[1718858700363,0.58152287,65260.0,65259.0,0.23272659]
[1718858700791,0.64102287,65260.0,65259.0,0.23272659]
[1718858700970,0.58152287,65260.0,65259.0,0.23272659]
[1718858701758,0.88798887,65260.0,65259.0,0.23272659]
[1718858701925,0.58152287,65260.0,65259.0,0.23272659]
[1718858702689,0.64102287,65260.0,65259.0,0.23272659]
[1718858702880,0.58152287,65260.0,65259.0,0.23272659]
[1718858703086,0.64102287,65260.0,65259.0,0.23272659]
[1718858704273,0.64102287,65260.0,65259.0,0.24272659]
[1718858704274,0.27505687,65260.0,65259.0,0.24272659]
[1718858704485,0.02182387,65260.0,65259.0,0.91449371]
[1718858704692,0.02182387,65260.0,65259.0,0.60802271]
[1718858706956,0.02182387,65260.0,65259.0,1.22096471]
[1718858708191,0.02182387,65260.0,65259.0,1.22191071]
[1718858708192,0.02082387,65260.0,65259.0,1.22191071]
[1718858708393,0.02182387,65260.0,65259.0,1.22891071]
[1718858708799,0.02082387,65260.0,65259.0,1.16941071]
[1718858709011,0.02082387,65260.0,65259.0,1.22891071]
[1718858709217,0.02182387,65260.0,65259.0,1.23691071]
[1718858715374,0.02182387,65260.0,65259.0,0.93043971]
[1718858718722,0.02182387,65260.0,65259.0,0.41123371]
[1718858718923,0.02182387,65260.0,65259.0,0.62396871]
[1718858720218,0.02182387,65260.0,65259.0,0.93043971]
[1718858725176,0.02182387,65260.0,65259.0,0.87093971]
[1718858725581,0.02182387,65260.0,65259.0,0.93043971]
[1718858731394,0.02464266,65260.0,65259.0,1.23691071]
[1718858731540,0.02464266,65260.0,65259.0,1.21848412]
[1718858731753,0.02464266,65260.0,65259.0,1.23691071]
[1718858731944,0.02464266,65260.0,65259.0,1.17741071]
[1718858732154,0.02464266,65260.0,65259.0,1.23691071]
[1718858735235,0.02485088,65260.0,65259.0,1.23691071]
[1718858735783,0.02485088,65260.0,65259.0,1.17741071]
[1718858735989,0.02485088,65260.0,65259.0,1.23691071]
[1718858736400,0.02485088,65260.0,65259.0,0.93043971]
[1718858738067,0.01821983,65266.0,65264.0,0.00421265]
[1718858738269,0.37159687,65267.0,65266.0,0.00842659]
[1718858738794,0.67802987,65267.0,65266.0,0.00842659]
[1718858739332,0.586249,65267.0,65266.0,0.00842659]
[1718858740255,0.687249,65267.0,65266.0,0.01542659]
[1718858740462,0.687249,65267.0,65266.0,0.01644659]
[1718858741465,1.19690808,65267.0,65266.0,0.01644659]
[1718858742002,1.50434108,65267.0,65266.0,0.02344659]
[1718858743336,1.389615,65267.0,65266.0,0.02344659]
[1718858743723,1.50446664,65267.0,65266.0,0.02344659]
[1718858744082,1.389615,65267.0,65266.0,0.02344659]
[1718858748253,1.4049849,65267.0,65266.0,0.02344659]
[1718858748448,1.0985519,65267.0,65266.0,0.02344659]
[1718858752220,0.868082,65267.0,65266.0,0.02344659]
[1718858752431,0.88291731,65267.0,65266.0,0.02344659]
[1718858772757,0.88291731,65267.0,65266.0,0.02439259]
[1718858772908,0.88377731,65267.0,65266.0,0.02439259]
[1718858774808,0.88377731,65267.0,65266.0,0.015966]
[1718858779242,1.02170342,65267.0,65266.0,0.015966]
[1718858779442,1.02185415,65267.0,65266.0,0.015966]
[1718858780460,1.02185415,65267.0,65266.0,0.02439259]
[1718858782572,1.32828715,65267.0,65266.0,0.02439259]
[1718858782801,1.02185415,65267.0,65266.0,0.02439259]
[1718858783849,1.08135415,65267.0,65266.0,0.02439259]
[1718858784206,1.02185415,65267.0,65266.0,0.02439259]
[1718858785001,0.88377731,65267.0,65266.0,0.02439259]
[1718858785203,1.19021031,65267.0,65266.0,0.015966]
[1718858785403,1.14385415,65267.0,65266.0,0.015966]
[1718858785643,1.00577731,65267.0,65266.0,0.015966]
[1718858785983,1.31221031,65267.0,65266.0,0.02439259]
[1718858786205,1.14386135,65267.0,65266.0,0.02439259]
[1718858786814,1.14386135,65267.0,65266.0,0.015966]
[1718858787019,1.14386135,65267.0,65266.0,0.02439259]
[1718858787187,1.45029435,65267.0,65266.0,0.02439259]
[1718858787405,1.02186135,65267.0,65266.0,0.23719259]
[1718858787619,0.88377731,65267.0,65266.0,0.23719259]
[1718858790141,0.17091131,65267.0,65266.0,0.23719259]
[1718858790332,0.01769531,65267.0,65266.0,0.30669259]
[1718858790656,0.13276245,65267.0,65266.0,0.30669259]
[1718858790930,0.17091131,65267.0,65266.0,0.30669259]
[1718858791093,0.26296771,65267.0,65266.0,0.30669259]
[1718858792048,0.10975171,65267.0,65266.0,0.30669259]
[1718858792364,0.01769531,65267.0,65266.0,0.30669259]
[1718858797771,0.01769531,65267.0,65266.0,0.45991159]
[1718858797975,0.01769531,65267.0,65266.0,1.22534871]
[1718858798762,0.01769531,65267.0,65266.0,1.16584871]
[1718858798967,0.01769531,65267.0,65266.0,1.22534871]
[1718858812071,0.00286,65267.0,65266.0,1.22534871]
[1718858812305,0.02077585,65267.0,65266.0,1.22534871]
[1718858812511,0.02077585,65267.0,65266.0,1.16584871]
[1718858812656,0.02077585,65267.0,65266.0,1.22534871]
[1718858814747,0.02077585,65267.0,65266.0,1.63378671]
[1718858815760,0.01977585,65267.0,65266.0,1.62678671]
[1718858816166,0.02077585,65267.0,65266.0,1.63376671]
[1718858816368,0.01977585,65267.0,65266.0,1.62676671]
[1718858816569,0.01877585,65267.0,65266.0,1.66876671]
[1718858816769,0.01977585,65267.0,65266.0,1.67776671]
[1718858818082,0.01977585,65267.0,65266.0,1.68276671]
[1718858818261,0.01877585,65267.0,65266.0,1.66876671]
[1718858818645,0.01977585,65267.0,65266.0,1.68276671]
[1718858818934,0.02077585,65267.0,65266.0,1.69676671]
[1718858819135,0.01977585,65267.0,65266.0,1.68276671]
[1718858819705,0.02077585,65267.0,65266.0,1.69676671]
[1718858820348,0.01861658,65267.0,65266.0,1.69676671]
[1718858820492,0.01861658,65267.0,65266.0,1.59476671]
[1718858820699,0.01861658,65267.0,65266.0,0.41273371]
[1718858821204,0.01861658,65267.0,65266.0,0.56595271]
[1718858821669,0.01861658,65267.0,65266.0,0.55595271]
[1718858821815,0.01861658,65267.0,65266.0,0.56595271]
[1718858822262,0.01861658,65267.0,65266.0,0.55595271]
[1718858822437,0.68556558,65267.0,65266.0,0.03839259]
[1718858822621,0.99199858,65267.0,65266.0,0.03839259]
[1718858823028,0.68556558,65267.0,65266.0,0.03839259]
[1718858824046,0.99199858,65267.0,65266.0,0.03839259]
[1718858824449,0.99099858,65267.0,65266.0,0.015966]
[1718858824696,0.99099858,65267.0,65266.0,0.001966]
[1718858824697,0.98999858,65267.0,65266.0,0.001966]
[1718858824950,0.98999858,65267.0,65266.0,0.019966]
[1718858824951,0.99199858,65267.0,65266.0,0.019966]
[1718858825397,0.99099858,65267.0,65266.0,0.001966]
[1718858825644,0.99099858,65267.0,65266.0,0.008966]
[1718858825951,0.98999858,65267.0,65266.0,0.005966]
[1718858826270,0.98999858,65267.0,65266.0,0.001966]
[1718858826271,1.08199292,65267.0,65266.0,0.001966]
[1718858826489,1.08199292,65267.0,65266.0,0.005966]
[1718858827339,0.98999858,65267.0,65266.0,0.005966]
[1718858827724,0.98999858,65267.0,65266.0,0.003966]
[1718858828181,0.99099858,65267.0,65266.0,0.003966]
[1718858828378,2.04761716,65267.0,65266.0,0.003966]
[1718858828593,1.6920658,65267.0,65266.0,0.003966]
[1718858828791,1.74068558,65267.0,65266.0,0.003966]
[1718858828992,2.05390593,65267.0,65266.0,0.003966]
[1718858829224,2.21473263,65267.0,65266.0,0.001966]
[1718858829365,2.58728027,65267.0,65266.0,0.001966]
[1718858829569,2.29685506,65267.0,65266.0,0.001966]
[1718858829763,2.29585506,65267.0,65266.0,0.001966]
[1718858830343,2.29685506,65267.0,65266.0,0.001966]
[1718858830546,2.29106771,65267.0,65266.0,0.001966]
[1718858830679,2.29685506,65267.0,65266.0,0.001966]
[1718858831419,2.29785506,65267.0,65266.0,0.001966]
[1718858831673,2.29685506,65267.0,65266.0,0.001966]
[1718858831847,2.30686248,65267.0,65266.0,0.002966]
[1718858832184,2.29286248,65267.0,65266.0,0.001966]
[1718858832386,2.30586249,65267.0,65266.0,0.002966]
[1718858832636,2.31986249,65267.0,65266.0,0.003966]
[1718858833390,2.30586249,65267.0,65266.0,0.002966]
[1718858833502,2.31986249,65267.0,65266.0,0.003966]
[1718858834365,2.30586249,65267.0,65266.0,0.002966]
[1718858834533,2.15178649,65267.0,65266.0,0.002966]
[1718858834732,2.16578649,65267.0,65266.0,0.003966]
[1718858835515,2.31900249,65267.0,65266.0,0.003966]
[1718858836256,2.45743795,65267.0,65266.0,0.003966]
[1718858837313,2.31986249,65267.0,65266.0,0.003966]
[1718858839633,2.32933349,65267.0,65266.0,0.003966]
[1718858844234,2.63576649,65267.0,65266.0,0.003966]
[1718858844445,2.88832063,65267.0,65266.0,0.003966]
[1718858844660,3.0257208,65267.0,65266.0,0.003966]
[1718858844958,2.68146466,65267.0,65266.0,0.003966]
[1718858845139,7.42501052,65267.0,65266.0,0.003966]
[1718858845353,7.37861452,65267.0,65266.0,0.003966]
[1718858845761,7.35725552,65267.0,65266.0,0.003966]
[1718858846160,7.11621064,65267.0,65266.0,0.003966]
[1718858846362,7.34647478,65267.0,65266.0,0.003966]
[1718858846569,7.37067675,65267.0,65266.0,3e-07]
[1718858846992,2.89667475,65267.0,65266.0,3e-07]
[1718858847197,3.05055361,65267.0,65266.0,3e-07]
[1718858847792,2.94583789,65267.0,65266.0,3e-07]
[1718858847994,3.00628736,65267.0,65266.0,3e-07]
[1718858848190,2.95685073,65267.0,65266.0,3e-07]
[1718858848363,2.94285073,65267.0,65266.0,3e-07]
[1718858848785,1.89495035,65260.0,65259.0,0.000946]
[1718858849135,2.91262824,65260.0,65259.0,0.000946]
[1718858849246,6.20972288,65260.0,65259.0,0.000946]
[1718858849451,6.22675067,65260.0,65259.0,0.000946]
[1718858849678,6.32246267,65260.0,65259.0,0.000946]
[1718858850480,6.26260267,65260.0,65259.0,0.000946]
[1718858850680,5.93229389,65260.0,65259.0,0.000946]
[1718858850883,5.94229389,65260.0,65259.0,0.000946]
[1718858851944,5.90517089,65260.0,65259.0,0.000946]
[1718858852085,5.92921129,65260.0,65259.0,0.000946]
[1718858852298,1.38494735,65257.0,65256.0,0.00886265]
[1718858852510,1.85216434,65257.0,65256.0,0.00886265]
[1718858852708,5.01609088,65257.0,65256.0,0.00886265]
[1718858853012,1.90230288,65257.0,65256.0,0.00886265]
[1718858853232,5.01609088,65257.0,65256.0,0.00886265]
[1718858853632,2.0003511,65257.0,65256.0,0.00886265]
[1718858853796,5.1141391,65257.0,65256.0,0.00886265]
[1718858853997,4.6119151,65257.0,65256.0,0.00886265]
[1718858854287,3.7807261,65257.0,65256.0,0.00886265]
[1718858854479,3.7272261,65257.0,65256.0,0.00886265]
[1718858854718,3.5246811,65257.0,65256.0,0.00886265]
[1718858855082,3.43307288,65257.0,65256.0,0.00886265]
[1718858855712,2.93758941,65257.0,65256.0,0.21776265]
[1718858855912,1.69053841,65257.0,65256.0,0.21776265]
[1718858856113,1.64039987,65257.0,65256.0,0.21776265]
[1718858858502,1.64267234,65257.0,65256.0,0.21776265]
[1718858858723,1.40856934,65257.0,65256.0,0.21776265]
[1718858859534,1.22484834,65257.0,65256.0,0.21776265]
[1718858859891,1.31518334,65257.0,65256.0,0.22618924]
[1718858861087,1.31518334,65257.0,65256.0,0.2219753]
[1718858861287,1.31018334,65257.0,65256.0,0.22618924]
[1718858861686,1.31018334,65257.0,65256.0,0.2219753]
[1718858861687,1.31618334,65257.0,65256.0,0.2219753]
[1718858861917,1.31018334,65257.0,65256.0,0.2219753]
[1718858862570,1.30718334,65257.0,65256.0,0.2219753]
[1718858862703,1.19784834,65257.0,65256.0,0.2219753]
[1718858863139,1.45238334,65257.0,65256.0,0.2219753]
[1718858864179,1.45238334,65257.0,65256.0,0.21776265]
[1718858864972,1.44938334,65257.0,65256.0,0.21776265]
[1718858865305,1.44738334,65257.0,65256.0,0.21776265]
[1718858865511,1.45038334,65257.0,65256.0,0.21776265]
[1718858865790,1.37478334,65257.0,65256.0,0.22618924]
[1718858866018,1.37578334,65257.0,65256.0,0.21776265]
[1718858866188,1.37678334,65257.0,65256.0,0.21776265]
[1718858866396,0.20410334,65257.0,65256.0,1.29820536]
[1718858866592,0.13726697,65265.0,65256.0,1.29820536]
[1718858866593,0.00086,65267.0,65266.0,0.00421394]
[1718858866794,0.460509,65267.0,65266.0,0.21882659]
[1718858866994,0.154076,65267.0,65266.0,0.21882659]
[1718858867198,0.154076,65267.0,65266.0,0.22026659]
[1718858867837,0.00086,65267.0,65266.0,0.22026659]
[1718858868325,0.154076,65267.0,65266.0,0.22026659]
[1718858868908,0.155076,65267.0,65266.0,0.22126659]
[1718858869261,0.156076,65267.0,65266.0,0.22326659]
[1718858870414,0.05229966,65281.0,65280.0,0.00842659]
[1718858870675,0.0595,65291.0,65280.0,0.00842659]
[1718858870676,0.09171956,65286.0,65285.0,0.00842659]
[1718858870893,0.24488556,65289.0,65287.0,0.00842659]
[1718858871088,0.253167,65288.0,65287.0,0.00842659]
[1718858871372,0.15317,65287.0,65283.0,0.2171]
[1718858871515,0.15317,65287.0,65286.0,0.00842659]
[1718858871729,0.25317,65287.0,65286.0,0.00842659]
[1718858871958,0.09171956,65294.0,65290.0,0.16158859]
[1718858872149,0.09171956,65294.0,65293.0,0.16158159]
[1718858872353,0.153139,65300.0,65294.0,0.00842659]
[1718858872531,0.17327159,65300.0,65297.0,0.00842659]
[1718858872910,0.153141,65299.0,65297.0,0.00842659]
[1718858874534,0.1,65298.0,65297.0,0.01436659]
[1718858874935,0.1,65298.0,65297.0,0.01636659]
[1718858875179,0.1,65298.0,65297.0,0.01536659]
[1718858875535,0.1,65298.0,65297.0,0.00942659]
[1718858875739,0.105,65298.0,65297.0,0.00842659]
[1718858876161,0.111,65298.0,65297.0,0.00942659]
[1718858876539,0.12054635,65298.0,65297.0,0.01530659]
[1718858876964,0.01047792,65300.0,65297.0,0.01530659]
[1718858877165,0.459417,65300.0,65299.0,0.00842659]
[1718858877373,0.46896335,65300.0,65299.0,0.00842659]
[1718858877789,0.153142,65299.0,65297.0,0.00942659]
[1718858878021,0.153144,65298.0,65297.0,0.00942659]
[1718858878230,0.153144,65298.0,65297.0,0.01042659]
[1718858878595,0.153144,65298.0,65297.0,0.01630659]
[1718858878959,0.153144,65298.0,65297.0,0.01430659]
[1718858879250,0.253144,65298.0,65297.0,0.01630659]
[1718858879442,0.253144,65298.0,65297.0,0.01530659]
[1718858879642,0.253144,65298.0,65297.0,0.01430659]
[1718858879845,0.259144,65298.0,65297.0,0.01530659]
[1718858880641,0.87172,65298.0,65297.0,0.00688]
[1718858880855,1.299908,65298.0,65297.0,0.00688]
[1718858881025,1.575012,65298.0,65297.0,0.00688]
[1718858881231,1.56920668,65298.0,65297.0,0.00688]
[1718858881428,1.22245,65298.0,65297.0,0.00688]
[1718858881679,1.06312,65298.0,65297.0,0.00688]
[1718858882661,0.87572,65298.0,65297.0,0.00688]
[1718858883072,1.162855,65298.0,65297.0,0.00688]
[1718858887751,0.87572,65298.0,65297.0,0.11710659]
[1718858888062,0.263144,65298.0,65297.0,0.11710659]
[1718858888280,0.263144,65298.0,65297.0,0.23870659]
[1718858888778,0.11,65298.0,65297.0,0.23870659]
[1718858890230,0.2964341,65302.0,65301.0,0.00842659]
[1718858891131,0.31662932,65302.0,65301.0,0.00842659]
[1718858891356,0.46976332,65302.0,65301.0,0.00842659]
[1718858891560,0.31662932,65302.0,65297.0,0.23282659]
[1718858891760,0.153143,65299.0,65298.0,0.00842659]
[1718858892282,0.153143,65299.0,65298.0,0.01442659]
[1718858892475,0.253143,65299.0,65298.0,0.01442659]
[1718858893309,0.258143,65299.0,65298.0,0.01442659]
[1718858893736,0.105,65299.0,65298.0,0.01442659]
[1718858894675,0.005,65299.0,65298.0,0.01442659]
[1718858895713,0.005,65299.0,65298.0,0.25272659]
[1718858896262,0.153131,65304.0,65299.0,0.2283]
[1718858896416,0.153131,65304.0,65303.0,0.00842659]
[1718858897363,0.16267588,65304.0,65303.0,0.00842659]
[1718858898412,0.16267588,65304.0,65303.0,0.01514659]
[1718858899031,0.00954488,65304.0,65303.0,0.16770771]
[1718858899232,0.00954488,65304.0,65303.0,0.27000771]
[1718858899505,0.00954488,65304.0,65303.0,0.38890771]
[1718858899654,0.00954488,65304.0,65303.0,0.54203971]
[1718858900251,0.01054488,65304.0,65303.0,0.54903971]
[1718858900449,0.01054488,65304.0,65303.0,0.55703971]
[1718858900674,0.00954488,65304.0,65303.0,0.39690771]
[1718858900943,0.00086,65305.0,65303.0,0.39690771]
[1718858901144,0.00954473,65304.0,65303.0,0.38890771]
[1718858901293,0.00954473,65304.0,65303.0,0.39890771]
[1718858901883,0.01040473,65304.0,65303.0,0.39890771]
[1718858903034,0.01040473,65304.0,65303.0,0.40590771]
[1718858913540,0.00086,65304.0,65303.0,0.56903971]
[1718858913782,0.00086,65304.0,65303.0,0.87530371]
[1718858915517,0.00086,65304.0,65303.0,1.18156771]
[1718858919851,0.01040358,65304.0,65303.0,1.53783171]
[1718858920064,0.00086,65304.0,65303.0,1.53783171]
[1718858920269,0.00086,65304.0,65303.0,1.63983171]
[1718858921199,0.00086,65304.0,65303.0,1.62983171]
[1718858921406,0.00086,65304.0,65303.0,1.53511171]
[1718858921886,0.00086,65304.0,65303.0,1.52811171]
[1718858922319,0.00086,65304.0,65303.0,1.54211171]
[1718858922683,0.00086,65304.0,65303.0,1.52811171]
[1718858923304,0.00086,65304.0,65303.0,1.54211171]
[1718858926026,0.00086,65304.0,65303.0,1.59211171]
[1718858926905,0.00086,65304.0,65303.0,1.57811171]
[1718858927106,0.00086,65304.0,65303.0,1.59211171]
[1718858927921,0.00086,65304.0,65303.0,1.68011171]
[1718858928342,0.00086,65304.0,65303.0,1.69411171]
[1718858928542,0.00086,65304.0,65303.0,1.57811171]
[1718858928745,0.00086,65304.0,65303.0,1.56411171]